[Event "French-ch Youth U12 2022"]
[Site "Agen"]
[Date "2022.04.23"]
[Round "8.8"]
[White "Verdier, Anais"]
[Black "Allard Nedellec, Anna"]
[Result "1/2-1/2"]
[ECO "D45"]
[WhiteElo "1265"]
[BlackElo "1514"]
[Annotator "NA RC COMBH"]
[PlyCount "102"]
[EventDate "2022.04.17"]
[EventType "swiss"]
[EventCountry "FRA"]
[SourceTitle "playchess.com"]
[Source "ChessBase"]
[SourceQuality "1"]
[TimeControl "5400+30"]

1. d4 {[%emt 0:00:08]} d5 {[%emt 0:00:13]} 2. Nf3 {[%emt 0:00:12]} Nf6 {[%emt 0:00:13]} 3. c4 {[%emt 0:00:16]} c6 {[%emt 0:00:10]} 4. Nc3 {[%emt 0:00:40]} e6 {[%emt 0:00:17]} 5. e3 {[%emt 0:02:19]} Nbd7 {[%emt 0:01:33]} 6. cxd5 {[%emt 0:02:14]} exd5 {[%emt 0:01:23]} 7. Bd3 {[%emt 0:04:14]} Bd6 {[%emt 0:01:46]} 8. O-O {[%emt 0:02:23]} O-O {[%emt 0:02:09]} 9. Qc2 {[%emt 0:02:21]} Re8 {[%emt 0:02:11]} 10. Re1 {[%emt 0:02:02]} Qc7 {[%emt 0:03:29]} 11. e4 {[%emt 0:03:41]} dxe4 {[%emt 0:01:37]} 12. Nxe4 {[%emt 0:00:56]} h6 {[%emt 0:02:34]} 13. Nxd6 {[%emt 0:02:28]} Rxe1+ {[%emt 0:00:31]} 14. Nxe1 {[%emt 0:00:18]} Qxd6 {[%emt 0:00:21]} 15. Nf3 {[%emt 0:01:24]} Nb6 {[%emt 0:03:28]} 16. Be3 {[%emt 0:06:13]} Nbd5 {[%emt 0:02:52]} 17. Qd2 {[%emt 0:03:30]} Nh7 {[%emt 0:22:31]} 18. Ne5 {[%emt 0:06:41]} Nxe3 {[%emt 0:08:51]} 19. fxe3 {[%emt 0:02:37]} f6 {[%emt 0:02:38]} 20. Nf3 {[%emt 0:04:42]} Be6 {[%emt 0:04:32]} 21. b3 {[%emt 0:02:51]} c5 {[%emt 0:04:10]} 22. Rd1 {[%emt 0:04:28]} cxd4 {[%emt 0:01:57]} 23. exd4 {[%emt 0:00:25]} Bd5 {[%emt 0:05:56]} 24. Bc4 {[%emt 0:02:23]} a6 {[%emt 0:05:46]} 25. a4 {[%emt 0:03:09]} Bxc4 {[%emt 0:04:12]} 26. bxc4 {[%emt 0:00:17]} Qc6 {[%emt 0:00:33]} 27. Qb4 {[%emt 0:05:41]} Rc8 {[%emt 0:00:46]} 28. c5 {[%emt 0:02:06]} Nf8 {[%emt 0:03:26]} 29. Qc4+ {[%emt 0:04:28]} Kh7 {[%emt 0:02:18]} 30. Rc1 {[%emt 0:02:31]} Rd8 {[%emt 0:01:42]} 31. Rd1 {[%emt 0:02:34]} Rd5 {[%emt 0:01:05]} 32. Ne1 {[%emt 0:02:39]} Ne6 {[%emt 0:01:05]} 33. Nc2 {[%emt 0:02:12]} a5 {[%emt 0:01:20]} 34. Ne3 {[%emt 0:00:55]} Rg5 {[%emt 0:00:20]} 35. d5 {[%emt 0:02:08]} Qxc5 {[%emt 0:00:57]} 36. Qd3+ {[%emt 0:01:04]} Kh8 {[%emt 0:00:34]} 37. dxe6 {[%emt 0:00:12]} Re5 {[%emt 0:00:18]} 38. Re1 {[%emt 0:04:31]} Rxe6 {[%emt 0:00:18]} 39. Kf1 {[%emt 0:01:19]} Qh5 {[%emt 0:00:55]} 40. h3 {[%emt 0:01:19]} Qh4 {[%emt 0:00:45]} 41. Qd1 {[%emt 0:02:17]} Qf4+ {[%emt 0:01:01]} 42. Qf3 {[%emt 0:00:21]} Qb4 {[%emt 0:01:01]} 43. Nc2 {[%emt 0:02:35]} Qc4+ {[%emt 0:00:25]} 44. Kg1 {[%emt 0:01:06]} Rxe1+ {[%emt 0:00:54]} 45. Nxe1 {[%emt 0:00:12]} Qb4 {[%emt 0:00:11]} 46. Qd1 {[%emt 0:01:17]} Qb6+ {[%emt 0:00:49]} 47. Kh1 {[%emt 0:00:26]} Kg8 {[%emt 0:00:56]} 48. Nf3 {[%emt 0:00:56]} Qc7 {[%emt 0:00:22]} 49. Qb3+ {[%emt 0:02:03]} Kh8 {[%emt 0:00:22]} 50. Qb5 {[%emt 0:01:03]} Qc1+ {[%emt 0:00:26]} 51. Ng1 {[%emt 0:00:35]} Qc7 1/2-1/2

[Event "French-ch Youth U12 2022"]
[Site "Agen"]
[Date "2022.04.24"]
[Round "9.1"]
[White "Borne, Felix"]
[Black "Khoury, Theo"]
[Result "1-0"]
[ECO "A61"]
[WhiteElo "1780"]
[BlackElo "1878"]
[Annotator "NA RC COMBH"]
[PlyCount "91"]
[EventDate "2022.04.17"]
[EventType "swiss"]
[EventCountry "FRA"]
[SourceTitle "playchess.com"]
[Source "ChessBase"]
[SourceQuality "1"]
[TimeControl "5400+30"]

1. d4 {[%emt 0:00:02]} Nf6 {[%emt 0:00:09]} 2. c4 {[%emt 0:00:07]} c5 {[%emt 0:00:07]} 3. d5 {[%emt 0:00:02]} e6 {[%emt 0:00:08]} 4. Nc3 {[%emt 0:00:05]} exd5 {[%emt 0:00:08]} 5. cxd5 {[%emt 0:00:02]} d6 {[%emt 0:00:09]} 6. Nf3 {[%emt 0:00:09]} g6 {[%emt 0:00:04]} 7. Bf4 {[%emt 0:00:08]} a6 {[%emt 0:00:13]} 8. a4 {[%emt 0:00:04]} Bg7 {[%emt 0:00:13]} 9. h3 {[%emt 0:04:07]} O-O {[%emt 0:01:08]} 10. e3 {[%emt 0:00:27]} Ne8 {[%emt 0:08:41]} 11. Be2 {[%emt 0:01:47]} Nd7 {[%emt 0:00:18]} 12. O-O {[%emt 0:00:41]} Ne5 {[%emt 0:05:08]} 13. Nd2 {[%emt 0:04:41] 13.Bxe5 is more advanced technology.} Bd7 {[%emt 0:05:20]} 14. Bh2 {[%emt 0:01:41]} f5 {[%emt 0:02:23]} 15. a5 {[%emt 0:02:06]} Qe7 {[%emt 0:04:49]} 16. Re1 {[%emt 0:02:23]} Nc7 {[%emt 0:04:46] [#]} 17. Qc2 $146 {[%emt 0:04:31]} ({Predecessor:} 17. Qb3 Rab8 18. Bf1 Kh8 19. f4 Nf7 20. Kh1 Rfe8 21. Bd3 h6 22. e4 Qh4 23. Nf3 Qf6 {1-0 (23) Goryachkina,A (2610)-Maisuradze,N (2202) Warsaw 2021}) 17... Bb5 {[%emt 0:02:36]} 18. Kh1 {[%emt 0:05:01]} Rae8 {[%emt 0:03:40]} 19. f4 {[%emt 0:02:16]} Nd7 {[%emt 0:01:48]} 20. Bf3 {[%emt 0:00:40]} Nf6 {[%emt 0:04:40]} 21. Bg3 {[%emt 0:03:59]} Qf7 {[%emt 0:02:43]} 22. e4 {[%emt 0:01:19]} fxe4 {[%emt 0:01:47]} 23. Ndxe4 {[%emt 0:01:17]} Rd8 {[%emt 0:03:52]} (23... Ncxd5 $2 24. Nxd6 Rxe1+ 25. Bxe1 $18 (25. Rxe1 Nb4 $18)) ({Don't take} 23... Nxe4 24. Nxe4 Qd7 25. f5 gxf5 26. Nxd6 Rxe1+ 27. Rxe1 $14) (23... Qd7 $16) 24. Ng5 {[%emt 0:00:48]} Qd7 {[%emt 0:01:16]} 25. Ne6 {[%emt 0:01:10]} Nxe6 {[%emt 0:02:22]} 26. dxe6 {[%emt 0:01:02]} Qe7 {[%emt 0:00:28]} 27. Bxb7 {[%emt 0:01:46]} Nh5 {[%emt 0:04:29]} 28. Qf2 {[%emt 0:04:01]} Qxb7 {[%emt 0:02:08]} 29. e7 {[%emt 0:00:22]} Bd4 {[%emt 0:00:12]} 30. exd8=Q {[%emt 0:14:11]} Rxd8 {[%emt 0:02:16]} 31. Re3 {[%emt 0:01:16]} Bxe3 {[%emt 0:02:47]} 32. Qxe3 {[%emt 0:00:07]} Re8 {[%emt 0:00:14]} 33. Qf2 {[%emt 0:01:02]} d5 {[%emt 0:01:59]} 34. Bh4 {[%emt 0:06:48]} d4 {[%emt 0:02:03]} 35. Nxb5 {[%emt 0:00:43]} Qxb5 {[%emt 0:00:14]} 36. Re1 {[%emt 0:02:37]} Qd7 {[%emt 0:03:01]} 37. Rxe8+ {[%emt 0:02:27]} Qxe8 {[%emt 0:00:07]} 38. b4 {[%emt 0:00:19]} Qc6 {[%emt 0:03:04]} 39. Qa2+ {[%emt 0:03:04]} c4 {[%emt 0:01:13]} 40. Qd2 {[%emt 0:02:23]} Qe4 {[%emt 0:05:25]} 41. Bf2 {[%emt 0:03:28]} d3 {[%emt 0:01:07]} 42. b5 $19 {[%emt 0:05:07]} (42. Qe1 $142 Qc6 43. Qe3) 42... Nxf4 {[%emt 0:01:03]} 43. Bc5 {[%emt 0:02:07]} Qxg2+ {[%emt 0:00:16]} 44. Qxg2 {[%emt 0:00:04]} Nxg2 {[%emt 0:00:09]} 45. Bb4 {[%emt 0:00:50]} Nf4 {[%emt 0:06:19]} 46. b6 {[%emt 0:00:24]} 1-0

[Event "French-ch Youth U12 2022"]
[Site "Agen"]
[Date "2022.04.24"]
[Round "9.2"]
[White "Charlier, Antoine"]
[Black "Motoyama, Wesley Winsen"]
[Result "0-1"]
[ECO "A44"]
[WhiteElo "1855"]
[BlackElo "1590"]
[Annotator "NA RC COMBH"]
[PlyCount "120"]
[EventDate "2022.04.17"]
[EventType "swiss"]
[EventCountry "FRA"]
[SourceTitle "playchess.com"]
[Source "ChessBase"]
[SourceQuality "1"]
[TimeControl "5400+30"]

1. d4 {[%emt 0:00:05]} c5 {[%emt 0:00:16]} 2. d5 {[%emt 0:00:10]} e5 {[%emt 0:00:35]} 3. c4 {[%emt 0:00:35]} d6 {[%emt 0:00:38]} 4. Nc3 {[%emt 0:01:59]} g6 {[%emt 0:00:37]} 5. e4 {[%emt 0:00:24]} Bg7 {[%emt 0:00:43]} 6. Bd3 {[%emt 0:00:33]} a6 {[%emt 0:01:17]} 7. Nge2 {[%emt 0:01:12]} Nf6 {[%emt 0:01:09]} 8. h3 {[%emt 0:01:11]} O-O {[%emt 0:03:23]} 9. Be3 {[%emt 0:01:50]} Nbd7 {[%emt 0:04:28]} 10. Qd2 {[%emt 0:02:54]} Ne8 {[%emt 0:09:04]} 11. g4 {[%emt 0:03:49]} Qe7 {[%emt 0:16:21]} 12. Ng3 {[%emt 0:03:32]} Nc7 {[%emt 0:06:29]} 13. Bh6 {[%emt 0:01:15]} Nf6 {[%emt 0:15:08]} 14. f3 {[%emt 0:06:29]} Rb8 {[%emt 0:01:23]} 15. b3 {[%emt 0:10:15]} b5 {[%emt 0:01:13]} 16. Bxg7 {[%emt 0:01:57]} Kxg7 {[%emt 0:00:08]} 17. h4 {[%emt 0:00:48]} bxc4 {[%emt 0:03:55]} 18. Bxc4 {[%emt 0:00:21]} Nb5 {[%emt 0:01:54]} 19. Bxb5 {[%emt 0:01:12]} axb5 {[%emt 0:00:07]} 20. Qg5 {[%emt 0:00:16]} Ng8 {[%emt 0:04:52]} 21. Qe3 {[%emt 0:08:02]} (21. Nh5+ $11 {is more appropriate.} Kh8 22. Qxe7 Nxe7 23. Nf6) 21... b4 {[%emt 0:03:21]} 22. Nce2 {[%emt 0:00:31]} Bd7 {[%emt 0:03:51]} 23. Kf2 {[%emt 0:01:27]} Ra8 {[%emt 0:04:06]} 24. h5 {[%emt 0:05:27]} g5 {[%emt 0:01:51]} (24... Ra3 $17) 25. Rhc1 {[%emt 0:01:07]} h6 {[%emt 0:00:34]} 26. Rc2 {[%emt 0:01:30]} Ra3 {[%emt 0:00:24]} 27. Nf1 $1 {[%emt 0:03:06]} Nf6 {[%emt 0:02:42]} 28. Kg2 {[%emt 0:08:46]} Rfa8 {[%emt 0:00:47]} 29. Nd2 $1 {[%emt 0:02:01]} Ne8 {[%emt 0:00:47]} 30. Nc4 {[%emt 0:02:28]} R3a6 {[%emt 0:00:12]} 31. Ng3 {[%emt 0:00:59]} Nc7 {[%emt 0:00:43]} 32. Qc1 {[%emt 0:02:06]} Nb5 {[%emt 0:00:45]} 33. Ne2 {[%emt 0:00:35]} Na3 {[%emt 0:00:47]} 34. Nxa3 {[%emt 0:00:57]} Rxa3 {[%emt 0:00:06]} 35. Ng3 {[%emt 0:00:56]} Rc8 {[%emt 0:00:50]} 36. Qb2 {[%emt 0:07:43]} Qd8 {[%emt 0:00:30]} 37. Rac1 {[%emt 0:01:07]} Rca8 {[%emt 0:00:45]} 38. Nf1 {[%emt 0:01:58]} Qa5 {[%emt 0:00:51]} 39. Ra1 {[%emt 0:00:38]} Qa6 {[%emt 0:01:30]} 40. Ne3 {[%emt 0:02:47]} Bb5 {[%emt 0:03:25]} 41. Nf5+ {[%emt 0:01:52]} Kh7 {[%emt 0:00:18]} 42. Rd2 {[%emt 0:01:45]} Rb8 {[%emt 0:01:07]} 43. Ne3 {[%emt 0:03:16]} c4 $11 {[%emt 0:01:23]} 44. Nxc4 {[%emt 0:00:56]} Bxc4 {[%emt 0:00:07]} 45. bxc4 {[%emt 0:00:40]} Qxc4 {[%emt 0:00:13]} 46. Rc1 {[%emt 0:00:14]} Rc3 {[%emt 0:00:57]} 47. Rdc2 {[%emt 0:00:30]} Rc8 {[%emt 0:00:50]} 48. Rxc3 {[%emt 0:03:16]} bxc3 {[%emt 0:00:04]} 49. Qc2 {[%emt 0:01:23]} Rb8 {[%emt 0:00:59]} 50. Qd1 {[%emt 0:06:00]} Rb2+ {[%emt 0:01:39]} 51. Kg3 {[%emt 0:00:37]} Qxa2 {[%emt 0:00:50]} 52. Qg1 {[%emt 0:00:30]} Rc2 {[%emt 0:01:26]} 53. Rd1 {[%emt 0:00:29]} Re2 {[%emt 0:00:50]} 54. Rc1 {[%emt 0:00:26]} Qd2 {[%emt 0:00:09]} 55. Kh3 {[%emt 0:00:27]} Rh2+ {[%emt 0:00:22]} 56. Qxh2 {[%emt 0:00:36]} Qxc1 {[%emt 0:00:06]} 57. Qf2 {[%emt 0:00:07]} Qd2 {[%emt 0:00:35]} 58. Qa7 {[%emt 0:00:15]} Kg7 {[%emt 0:00:16]} 59. Qc7 {[%emt 0:00:11]} c2 {[%emt 0:00:13]} 60. Qxd6 {[%emt 0:00:17]} Qf4 {[%emt 0:00:15]} 0-1

[Event "French-ch Youth U12 2022"]
[Site "Agen"]
[Date "2022.04.24"]
[Round "9.3"]
[White "Breuil, Virgile"]
[Black "Bonelli Maestracci, Pierre Joseph"]
[Result "1/2-1/2"]
[ECO "B22"]
[WhiteElo "1829"]
[BlackElo "1629"]
[Annotator "NA RC COMBH"]
[PlyCount "124"]
[EventDate "2022.04.17"]
[EventType "swiss"]
[EventCountry "FRA"]
[SourceTitle "playchess.com"]
[Source "ChessBase"]
[SourceQuality "1"]
[TimeControl "5400+30"]

1. e4 {[%emt 0:00:03]} c5 {[%emt 0:00:04]} 2. c3 {[%emt 0:00:22]} d5 {[%emt 0:00:11]} 3. exd5 {[%emt 0:00:22]} Qxd5 {[%emt 0:00:05]} 4. Nf3 {[%emt 0:00:44]} Nc6 {[%emt 0:00:07]} 5. d4 {[%emt 0:00:43]} cxd4 {[%emt 0:00:12]} 6. cxd4 {[%emt 0:00:19]} e5 {[%emt 0:00:04]} 7. Nc3 {[%emt 0:07:23]} Bb4 {[%emt 0:00:32]} 8. Be3 {[%emt 0:00:38]} (8. Bd2 $14 Bxc3 9. Bxc3) 8... Bg4 {[%emt 0:07:02]} 9. Be2 {[%emt 0:03:40]} Bxf3 {[%emt 0:15:40]} 10. Bxf3 {[%emt 0:00:11]} e4 {[%emt 0:00:18]} 11. Be2 {[%emt 0:00:33]} Nf6 {[%emt 0:00:17]} 12. O-O {[%emt 0:03:13]} Qa5 {[%emt 0:01:01]} 13. Qb3 {[%emt 0:02:20]} O-O {[%emt 0:02:16]} 14. a3 {[%emt 0:02:29]} Bxc3 {[%emt 0:06:19]} 15. bxc3 {[%emt 0:00:07]} Nd5 {[%emt 0:01:37]} 16. c4 {[%emt 0:02:23]} Nxe3 {[%emt 0:02:57]} 17. fxe3 {[%emt 0:02:15]} Qg5 {[%emt 0:00:37]} 18. Rf2 {[%emt 0:01:46]} Rac8 {[%emt 0:02:28]} 19. Raf1 {[%emt 0:02:20]} f5 {[%emt 0:03:26]} 20. c5+ {[%emt 0:09:14]} Kh8 {[%emt 0:00:52]} 21. Kh1 {[%emt 0:00:31]} Rf6 {[%emt 0:07:58]} 22. Qxb7 {[%emt 0:02:46]} Rcf8 {[%emt 0:01:12]} 23. d5 {[%emt 0:01:28]} Ne5 {[%emt 0:01:35]} 24. Qc7 {[%emt 0:02:14]} Ng6 {[%emt 0:06:23]} 25. Qg3 {[%emt 0:01:19]} Qh6 $2 {[%emt 0:00:56]} (25... Qxg3 26. hxg3 Rc8) 26. d6 {[%emt 0:01:43]} f4 {[%emt 0:02:35]} 27. Qh3 $4 {[%emt 0:04:41]} (27. exf4 $18 Nh4 28. Qc3) 27... Qg5 {[%emt 0:00:46]} 28. Qh5 {[%emt 0:00:27]} f3 {[%emt 0:06:02]} 29. Qxg5 {[%emt 0:06:28]} fxe2 {[%emt 0:02:15]} 30. Qxf6 {[%emt 0:00:11]} exf1=Q+ 31. Rxf1 gxf6 {[%emt 0:00:55]} 32. c6 {[%emt 0:01:37]} Ne5 {[%emt 0:01:31]} 33. c7 {[%emt 0:00:27]} Kg7 {[%emt 0:00:36]} 34. g4 {[%emt 0:01:29]} h6 {[%emt 0:06:49]} 35. h4 {[%emt 0:00:22]} Kf7 {[%emt 0:01:33]} 36. g5 {[%emt 0:00:42]} hxg5 {[%emt 0:00:22]} 37. hxg5 {[%emt 0:00:24]} Rh8+ {[%emt 0:00:03]} 38. Kg2 {[%emt 0:00:41]} Ke6 {[%emt 0:00:18]} 39. Rxf6+ {[%emt 0:00:30]} Kd7 {[%emt 0:00:34]} 40. Kg3 {[%emt 0:01:09]} Nc4 {[%emt 0:06:24]} 41. Kf4 {[%emt 0:04:20]} Nxd6 {[%emt 0:00:30]} 42. Ke5 {[%emt 0:00:33]} Nc4+ {[%emt 0:02:20]} 43. Kxe4 {[%emt 0:01:46]} Kxc7 {[%emt 0:00:48]} 44. g6 {[%emt 0:02:34]} Rg8 {[%emt 0:02:17]} 45. Kf4 {[%emt 0:02:00]} Kd7 {[%emt 0:00:30]} 46. Ra6 {[%emt 0:00:49]} Ke7 {[%emt 0:08:55]} 47. e4 {[%emt 0:04:49]} Nd6 {[%emt 0:00:27]} 48. Rxa7+ $11 {[%emt 0:02:45]} Ke6 {[%emt 0:00:24]} 49. e5 {[%emt 0:05:43]} Rxg6 {[%emt 0:00:56]} 50. Ra6 {[%emt 0:01:01]} Kd5 {[%emt 0:00:25]} 51. a4 {[%emt 0:00:43]} Rh6 {[%emt 0:00:41]} 52. a5 {[%emt 0:02:04]} Rh4+ {[%emt 0:00:23]} 53. Kg5 {[%emt 0:00:28]} Re4 {[%emt 0:00:31]} 54. exd6 {[%emt 0:00:25]} Re5+ {[%emt 0:00:42]} 55. Kf4 {[%emt 0:00:19]} Re8 {[%emt 0:00:13]} 56. d7 {[%emt 0:00:22]} Rd8 {[%emt 0:00:08]} 57. Ra7 {[%emt 0:00:25]} Kc6 {[%emt 0:00:29]} 58. Ke5 {[%emt 0:01:16]} Rxd7 {[%emt 0:00:12]} 59. Rxd7 {[%emt 0:00:36]} Kxd7 {[%emt 0:00:03]} 60. a6 {[%emt 0:00:08]} Kc7 {[%emt 0:00:03]} 61. a7 {[%emt 0:00:04]} Kb7 {[%emt 0:00:02]} 62. Kd6 {[%emt 0:00:08]} Kxa7 {[%emt 0:00:08]} 1/2-1/2

[Event "French-ch Youth U12 2022"]
[Site "Agen"]
[Date "2022.04.24"]
[Round "9.4"]
[White "Laignel, Quentin"]
[Black "Lefrancois, Jean"]
[Result "1/2-1/2"]
[ECO "D00"]
[WhiteElo "1600"]
[BlackElo "1476"]
[Annotator "NA RC COMBH"]
[PlyCount "147"]
[EventDate "2022.04.17"]
[EventType "swiss"]
[EventCountry "FRA"]
[SourceTitle "playchess.com"]
[Source "ChessBase"]
[SourceQuality "1"]
[TimeControl "5400+30"]

1. d4 {[%emt 0:00:08]} d5 {[%emt 0:00:09]} 2. Bf4 {[%emt 0:00:33]} e6 {[%emt 0:00:32]} 3. e3 {[%emt 0:00:44]} Bd6 {[%emt 0:00:31]} 4. Bg3 {[%emt 0:00:34]} Nf6 {[%emt 0:00:33]} 5. Nf3 {[%emt 0:00:57]} O-O {[%emt 0:03:19]} 6. Bd3 {[%emt 0:02:33]} Nbd7 {[%emt 0:01:58]} 7. c3 {[%emt 0:02:05]} Bxg3 {[%emt 0:02:29]} 8. hxg3 {[%emt 0:00:10]} c5 {[%emt 0:00:46]} 9. Ne5 {[%emt 0:02:15]} g6 {[%emt 0:06:02]} 10. Nxd7 {[%emt 0:10:18]} Bxd7 {[%emt 0:01:38]} 11. Nd2 {[%emt 0:00:50]} e5 {[%emt 0:07:49]} 12. dxe5 {[%emt 0:13:49]} Ng4 {[%emt 0:00:29]} 13. Nf3 {[%emt 0:00:10]} Qe7 {[%emt 0:00:26]} 14. Be2 {[%emt 0:00:30]} Bc6 {[%emt 0:01:22]} 15. O-O {[%emt 0:01:23]} Nxe5 {[%emt 0:00:17]} 16. Nxe5 {[%emt 0:00:04]} Qxe5 {[%emt 0:00:14]} 17. Bf3 {[%emt 0:00:14]} Rad8 {[%emt 0:00:27]} 18. Qb3 {[%emt 0:00:35]} b6 {[%emt 0:01:13]} 19. Rad1 {[%emt 0:00:11]} Rd7 {[%emt 0:09:48]} 20. Rd2 {[%emt 0:02:21]} Rfd8 {[%emt 0:01:51]} 21. Rfd1 {[%emt 0:00:16]} Ba8 {[%emt 0:02:08]} 22. Qa4 {[%emt 0:06:08]} Qc7 {[%emt 0:03:33]} 23. Qf4 {[%emt 0:01:51]} Qc8 {[%emt 0:11:07]} 24. Bg4 {[%emt 0:04:40]} f5 {[%emt 0:02:11]} 25. Bf3 {[%emt 0:00:56]} Rd6 {[%emt 0:12:58]} 26. g4 {[%emt 0:04:06]} fxg4 {[%emt 0:03:00]} 27. Bxg4 {[%emt 0:00:08]} Qc7 {[%emt 0:01:10]} 28. Bf3 {[%emt 0:00:39]} Rf8 {[%emt 0:01:14]} 29. Qg3 {[%emt 0:00:26]} Qd8 {[%emt 0:05:36]} 30. c4 {[%emt 0:01:16]} Bb7 {[%emt 0:02:03]} 31. Bxd5+ {[%emt 0:00:46]} Bxd5 {[%emt 0:00:09]} 32. cxd5 {[%emt 0:00:05]} Qf6 {[%emt 0:00:50]} 33. Qg4 {[%emt 0:06:26]} h5 {[%emt 0:01:11]} 34. Qa4 {[%emt 0:01:23]} Rf7 {[%emt 0:00:36]} 35. b4 {[%emt 0:00:08]} c4 {[%emt 0:03:00]} 36. Qc2 {[%emt 0:02:38]} b5 {[%emt 0:00:33]} 37. a4 {[%emt 0:01:49]} a6 {[%emt 0:00:08]} 38. axb5 {[%emt 0:00:05]} axb5 {[%emt 0:00:12]} 39. Qa2 {[%emt 0:00:15]} Ra6 {[%emt 0:00:33]} 40. Qb1 {[%emt 0:00:14]} Rfa7 {[%emt 0:03:41]} 41. d6 {[%emt 0:03:14]} Rd7 {[%emt 0:02:18]} 42. Qe4 {[%emt 0:05:28]} Rdxd6 {[%emt 0:02:17]} 43. Rxd6 {[%emt 0:01:52]} Rxd6 {[%emt 0:00:16]} 44. Rxd6 {[%emt 0:00:07]} Qxd6 {[%emt 0:00:15]} 45. Qe8+ {[%emt 0:00:36]} Kg7 {[%emt 0:01:28]} 46. Qxb5 {[%emt 0:00:53]} c3 {[%emt 0:01:02]} 47. Qb7+ {[%emt 0:02:03]} Kh6 {[%emt 0:01:26]} 48. Qe4 {[%emt 0:01:07]} Qd1+ {[%emt 0:01:57]} 49. Kh2 {[%emt 0:00:07]} Qg4 {[%emt 0:01:17]} 50. Qe5 {[%emt 0:01:19]} c2 {[%emt 0:01:31]} 51. Qh8+ {[%emt 0:02:28]} Kg5 {[%emt 0:00:17]} 52. Qe5+ {[%emt 0:00:23]} Qf5 {[%emt 0:00:45]} 53. Qc3 {[%emt 0:04:30]} Qxf2 {[%emt 0:00:40]} 54. b5 {[%emt 0:01:25]} h4 {[%emt 0:01:55]} 55. Qe5+ {[%emt 0:06:48]} Kg4 {[%emt 0:00:32]} 56. Qd4+ {[%emt 0:02:33]} Kh5 {[%emt 0:00:40]} 57. Qh8+ {[%emt 0:00:08]} Kg5 {[%emt 0:00:22]} 58. Qe5+ {[%emt 0:00:11]} Qf5 {[%emt 0:00:13]} 59. Qc3 {[%emt 0:01:12]} Qxb5 {[%emt 0:00:08]} 60. Qxc2 {[%emt 0:00:17]} Qe5+ {[%emt 0:00:04]} 61. Kh1 {[%emt 0:00:20]} Qxe3 {[%emt 0:00:11]} 62. Qc8 {[%emt 0:01:11]} Qf4 {[%emt 0:00:28]} 63. Qd8+ {[%emt 0:00:13]} Qf6 {[%emt 0:00:19]} 64. Qd5+ {[%emt 0:00:51]} Kh6 {[%emt 0:00:15]} 65. Qd2+ {[%emt 0:00:14]} g5 {[%emt 0:00:08]} 66. Qd1 {[%emt 0:00:20]} Qe6 {[%emt 0:00:14]} 67. Qf1 {[%emt 0:00:17]} g4 {[%emt 0:00:14]} 68. Qf8+ {[%emt 0:00:12]} Kg5 {[%emt 0:00:16]} 69. Qd8+ {[%emt 0:00:35]} Qf6 {[%emt 0:00:28]} 70. Qg8+ {[%emt 0:00:07]} Kf4 {[%emt 0:00:21]} 71. Qc4+ {[%emt 0:00:27]} Kg3 {[%emt 0:00:40]} 72. Qd3+ {[%emt 0:00:16]} Kf4 {[%emt 0:00:25]} 73. Qc4+ {[%emt 0:00:26]} Kg5 {[%emt 0:00:12]} 74. Qg8+ 1/2-1/2

[Event "French-ch Youth U12 2022"]
[Site "Agen"]
[Date "2022.04.24"]
[Round "9.5"]
[White "Bernard, Ines"]
[Black "Alfano, Emilie"]
[Result "1/2-1/2"]
[ECO "D00"]
[WhiteElo "1430"]
[BlackElo "1635"]
[Annotator "NA RC COMBH"]
[PlyCount "105"]
[EventDate "2022.04.17"]
[EventType "swiss"]
[EventCountry "FRA"]
[SourceTitle "playchess.com"]
[Source "ChessBase"]
[SourceQuality "1"]
[TimeControl "5400+30"]

1. d4 {[%emt 0:00:00]} d5 {[%emt 0:00:09]} 2. Bf4 {[%emt 0:00:09]} e6 {[%emt 0:00:19]} 3. e3 {[%emt 0:00:05]} Nf6 {[%emt 0:00:20]} 4. Bd3 {[%emt 0:00:05]} Bd6 {[%emt 0:00:21]} 5. Bg3 {[%emt 0:00:11]} O-O {[%emt 0:00:51]} 6. Nf3 {[%emt 0:00:27]} b6 {[%emt 0:00:19]} 7. c3 {[%emt 0:00:15]} Bb7 {[%emt 0:00:44]} 8. Nbd2 {[%emt 0:00:44]} c5 {[%emt 0:01:14]} 9. Qe2 {[%emt 0:03:10]} Nc6 {[%emt 0:02:27]} 10. e4 {[%emt 0:06:25]} Be7 {[%emt 0:08:14]} 11. e5 {[%emt 0:02:41]} Nd7 {[%emt 0:00:10]} 12. a3 {[%emt 0:00:49]} c4 {[%emt 0:00:51]} 13. Bc2 {[%emt 0:00:26]} a5 {[%emt 0:00:46]} 14. a4 {[%emt 0:01:37]} Kh8 {[%emt 0:00:59]} 15. h4 {[%emt 0:00:11]} h6 {[%emt 0:06:29]} 16. Bf4 {[%emt 0:05:32]} f5 {[%emt 0:01:12]} 17. Ng5 {[%emt 0:01:48]} Qc8 {[%emt 0:07:16]} 18. Nxe6 {[%emt 0:00:49]} Rf7 {[%emt 0:00:18]} 19. Qh5 {[%emt 0:02:28]} Ndxe5 {[%emt 0:00:39]} 20. Ng5 {[%emt 0:02:41]} Bxg5 {[%emt 0:11:52]} 21. hxg5 {[%emt 0:00:23]} Qe6 {[%emt 0:00:28]} 22. dxe5 {[%emt 0:01:19]} Nxe5 {[%emt 0:00:12]} 23. O-O-O {[%emt 0:01:34]} Nd3+ {[%emt 0:02:14]} 24. Bxd3 {[%emt 0:00:07]} cxd3 {[%emt 0:00:04]} 25. gxh6 {[%emt 0:01:44]} g6 {[%emt 0:00:07]} 26. Qg5 {[%emt 0:00:13]} d4 {[%emt 0:00:35]} 27. Rde1 {[%emt 0:00:14]} Qc6 {[%emt 0:01:57]} 28. Be5+ {[%emt 0:00:11]} Kh7 {[%emt 0:00:16]} 29. Nb1 {[%emt 0:03:32]} Qxa4 {[%emt 0:00:45]} 30. Qd2 {[%emt 0:03:10]} dxc3 {[%emt 0:00:45]} 31. Bxc3 {[%emt 0:00:23]} b5 {[%emt 0:01:54]} 32. Qxd3 {[%emt 0:01:18]} b4 {[%emt 0:00:26]} 33. Qc4 {[%emt 0:02:02]} Qd7 {[%emt 0:00:29]} 34. Rd1 {[%emt 0:00:24]} Qe8 {[%emt 0:01:23]} 35. Rhe1 {[%emt 0:00:59]} Qg8 {[%emt 0:00:14]} 36. Qe6 {[%emt 0:02:13]} Ra6 {[%emt 0:02:50]} 37. Rd6 {[%emt 0:00:58]} Rxd6 {[%emt 0:00:10]} 38. Qxd6 {[%emt 0:00:15]} bxc3 {[%emt 0:00:11]} 39. Nxc3 {[%emt 0:00:07]} Bxg2 {[%emt 0:01:05]} 40. Qg3 {[%emt 0:02:57]} Bb7 {[%emt 0:00:47]} 41. Qg5 {[%emt 0:00:24]} Qf8 {[%emt 0:00:55]} 42. Kb1 {[%emt 0:00:47]} Qxh6 {[%emt 0:00:22]} 43. Qd8 {[%emt 0:00:28]} Qf4 {[%emt 0:01:24]} 44. Re7 {[%emt 0:10:41]} Be4+ {[%emt 0:00:15]} 45. Ka2 {[%emt 0:01:17]} Rxe7 46. Qxe7+ {[%emt 0:00:09]} Kh6 {[%emt 0:00:47]} 47. Qc5 {[%emt 0:04:40]} g5 {[%emt 0:02:02]} 48. Ne2 {[%emt 0:01:15]} Qg4 {[%emt 0:01:15]} 49. Ng3 {[%emt 0:00:36]} Qf4 {[%emt 0:01:37]} 50. Qf8+ {[%emt 0:00:23]} Kg6 {[%emt 0:00:16]} 51. Qg8+ {[%emt 0:00:12]} Kh6 {[%emt 0:00:17]} 52. Qe6+ {[%emt 0:01:29]} Kh7 {[%emt 0:00:16]} 53. Qf7+ {[%emt 0:00:50]} 1/2-1/2